bitfinex-derivatives/quotes_ETHF0:USTF0_20260102
["timestamp","ask_amount","ask_price","bid_price","bid_amount"]
[1767360731055,0.16397,3052.2,3050.1,0.14139484]
[1767360731447,0.16398,3052.1,3050.1,0.14139484]
[1767360731851,0.16398,3052.1,3050.8,0.00491697]
[1767360731852,0.00491697,3051.4,3050.8,0.00491697]
[1767360732249,40.8,3052.6,3050.8,0.14631181]
[1767360732457,3.278,3052.7,3050.8,0.14631181]
[1767360733354,0.00491697,3052.1,3050.8,0.14631181]
[1767360733550,0.00491697,3052.1,3051.0,0.14139484]
[1767360734047,3.555,3053.5,3051.2,0.14139484]
[1767360734350,3.7189,3053.5,3051.4,0.14139484]
[1767360734957,0.00491697,3052.7,3051.4,0.14139484]
[1767360739251,0.00491697,3052.7,3051.6,0.14139484]
[1767360748357,0.00491697,3052.7,3051.7,4.29553461]
[1767360748552,0.00348951,3053.4,3051.8,0.13489578]
[1767360754068,0.16739951,3053.4,3051.8,0.13489578]
[1767360754267,0.16391,3053.3,3051.8,0.13489578]
[1767360757970,0.00348951,3053.4,3051.8,0.13489578]
[1767360758370,0.00348951,3053.4,3051.8,0.29888578]
[1767360758572,0.00348951,3053.4,3051.9,0.13489578]
[1767360758771,0.00348951,3053.4,3052.4,0.13489578]
[1767360759071,0.00348951,3053.4,3052.4,0.13771466]
[1767360762066,0.16738951,3053.4,3052.4,0.13771466]
[1767360762370,0.16738951,3053.4,3051.2,0.16402]
[1767360762570,0.16391,3053.3,3051.9,0.14263163]
[1767360762972,0.16391,3053.2,3051.3,4.22562865]
[1767360763274,0.00491697,3052.6,3051.9,0.00491697]
[1767360764675,0.00491697,3052.6,3052.1,0.14263163]
[1767360768176,0.00491697,3052.6,3051.9,0.00491697]
[1767360769977,0.14638343,3052.8,3051.3,4.22884889]
[1767360770278,0.14638343,3052.8,3051.3,0.00322024]
[1767360770970,0.00491697,3052.4,3051.7,0.00491697]
[1767360774972,0.00983394,3052.4,3051.3,0.00322024]
[1767360775873,0.32017737,3052.4,3050.7,0.13489578]
[1767360776177,1.44747167,3052.2,3051.5,0.00491697]
[1767360776380,6.24347167,3052.2,3050.7,0.13489578]
[1767360776679,0.16888697,3052.1,3050.7,0.13489578]
[1767360776980,0.16398,3052.0,3050.7,0.13896245]
[1767360777371,0.16398,3052.0,3051.0,0.00491697]
[1767360779181,0.29934858,3052.0,3050.7,0.00406667]
[1767360780180,0.29934858,3052.0,3051.0,0.00491697]
[1767360780476,0.16398,3052.0,3051.0,0.00491697]
[1767360781276,0.00491697,3052.4,3051.0,0.13785498]
[1767360782579,0.00491697,3052.4,3051.2,0.13293801]
[1767360783777,0.16391,3053.2,3051.4,0.13293801]
[1767360784283,0.16391,3053.2,3051.6,0.13293801]
[1767360784683,0.00491697,3052.7,3051.6,0.13293801]
[1767360785382,0.00491697,3052.7,3051.2,0.13293801]
[1767360785688,0.13536858,3052.6,3051.0,0.00491697]
[1767360786080,0.29931858,3052.6,3051.0,0.00491697]
[1767360786279,0.16395,3052.5,3051.0,0.00491697]
[1767360786482,0.29931858,3052.5,3051.0,0.00491697]
[1767360786889,0.13536858,3052.4,3051.0,0.00491697]
[1767360788186,0.13536858,3052.2,3051.0,0.00491697]
[1767360788588,0.13536858,3052.1,3051.0,0.00491697]
[1767360791888,0.16397,3052.2,3051.0,0.00491697]
[1767360792086,4.801,3052.6,3051.0,0.13785498]
[1767360793791,0.30422555,3052.7,3051.0,0.13785498]
[1767360796191,0.00491697,3052.7,3051.1,4.28641093]
[1767360796385,0.00491697,3052.7,3051.2,0.29695801]
[1767360796583,0.00491697,3052.7,3051.3,0.29694801]
[1767360796786,0.00491697,3052.7,3051.4,0.13293801]
[1767360799790,0.00491697,3052.7,3051.6,0.13293801]
[1767360805095,5.10025858,3053.6,3051.7,4.34573385]
[1767360805293,0.29925858,3053.6,3051.8,0.13293801]
[1767360805996,0.14873273,3053.4,3051.8,0.13293801]
[1767360806196,0.00491697,3052.9,3051.8,0.13293801]
[1767360810502,0.00491697,3052.9,3051.7,0.16399]
[1767360818105,0.00491697,3052.9,3051.5,0.14097845]
[1767360820306,0.13997776,3052.9,3051.2,0.16402]
[1767360820811,0.13997776,3052.9,3051.2,0.30499845]
[1767360821114,0.13997776,3052.9,3051.3,0.14097845]
[1767360835510,0.16394,3052.8,3051.1,0.14097845]
[1767360835711,0.13506079,3052.7,3051.1,0.14097845]
[1767360838112,0.16394,3052.8,3051.1,0.14097845]
[1767360838518,0.16394,3052.8,3051.3,0.15254083]
[1767360840420,0.30414381,3052.8,3051.3,0.15254083]
[1767360840608,0.75053788,3052.6,3051.3,0.15254083]
[1767360840814,0.89074169,3052.6,3051.3,0.15254083]
[1767360841015,0.46780381,3052.5,3051.0,0.16894697]
[1767360841416,0.46780381,3052.5,3051.0,0.3214878]
[1767360841725,0.46780381,3052.5,3051.1,0.15254083]
[1767360841923,0.3276,3052.5,3051.1,0.15254083]
[1767360854435,0.14020381,3052.4,3051.0,0.00491697]
[1767360855241,0.14020381,3052.4,3051.0,0.1574578]
[1767360855635,0.13920381,3052.4,3051.0,0.1574578]
[1767360857742,0.16395,3052.6,3051.0,0.1574578]
[1767360860540,0.30415381,3052.6,3051.0,0.1574578]
[1767360861546,0.3276,3052.5,3051.0,0.1574578]
[1767360862048,0.00491697,3052.9,3051.8,0.15254083]
[1767360862344,0.00491697,3052.9,3051.9,4.25259874]
[1767360862653,0.00491697,3052.9,3051.7,0.16399]
[1767360863236,0.00491697,3052.9,3051.4,0.15254083]
[1767360865746,0.3275,3052.8,3051.4,0.15254083]
[1767360866652,0.3275,3052.8,3051.6,0.12704974]
[1767360869648,0.3275,3052.8,3051.5,4.28924348]
[1767360869847,1.20427032,3052.8,3051.4,0.16401]
[1767360870053,1.20427032,3052.8,3051.2,3.24304974]
[1767360870449,1.20427032,3052.8,3051.3,4.2394876]
[1767360872957,1.20427032,3052.8,3051.3,4.36653734]
[1767360876460,0.75057254,3052.5,3051.3,4.36653734]
[1767360879956,0.75057254,3052.5,3051.4,5.384]
[1767360881062,0.75057254,3052.5,3051.5,5.385]
[1767360881267,0.3276,3052.4,3051.5,5.385]
[1767360883468,0.3276,3052.4,3051.3,0.12704974]
[1767360883666,0.3276,3052.4,3051.4,5.386]
[1767360883966,0.75057254,3052.2,3051.4,5.386]
[1767360885166,0.75057254,3052.2,3051.0,0.29599671]
[1767360885372,0.75057254,3051.9,3051.1,5.387]
[1767360885561,0.75057254,3051.9,3051.0,0.00491697]
[1767360885761,0.75057254,3051.9,3051.0,5.39091697]
[1767360889275,0.45383244,3052.4,3051.0,5.39091697]
[1767360889478,0.75057254,3051.9,3051.0,5.39091697]
[1767360893678,0.75057254,3051.9,3051.0,0.00491697]
[1767360893871,0.75057254,3051.9,3051.0,5.40091697]
[1767360895075,0.75057254,3052.3,3051.1,0.12704974]
[1767360895277,0.3276,3052.4,3051.1,0.12704974]
[1767360895473,1.07817254,3052.4,3051.1,0.12704974]
[1767360896578,0.75057254,3052.2,3051.1,0.12704974]
[1767360900875,0.75057254,3052.2,3051.1,5.52104974]
[1767360902386,0.75057254,3052.2,3051.0,0.00491697]
[1767360902583,0.75057254,3052.2,3051.0,5.39991697]
[1767360907985,0.14090636,3052.9,3051.6,0.75057254]
[1767360908181,0.00491697,3052.9,3051.8,0.89230099]
[1767360908591,0.3275,3052.8,3051.8,0.89230099]
[1767360909973,0.3275,3052.8,3051.8,0.14172845]
[1767360912786,0.3275,3052.8,3051.4,0.30573845]
[1767360912985,0.75057254,3052.6,3051.5,5.396]
[1767360913993,0.75057254,3052.4,3051.4,0.14172845]
[1767360914287,0.75057254,3052.5,3051.6,5.397]
[1767360914486,0.75057254,3052.5,3051.5,5.397]
[1767360918890,0.75057254,3052.3,3051.0,0.14664542]
[1767360919190,0.75057254,3052.3,3051.1,4.23195048]
[1767360919687,0.75057254,3052.3,3051.2,5.398]
[1767360921488,0.75057254,3052.3,3051.2,5.399]
[1767360923292,0.75057254,3052.1,3051.2,5.399]
[1767360923891,0.75057254,3052.1,3051.0,0.14664542]
[1767360924190,0.75057254,3051.9,3051.1,5.4]
[1767360924801,0.75057254,3052.1,3051.1,5.4]
[1767360927503,0.13598939,3052.3,3051.0,0.00491697]
[1767360927504,0.75057254,3051.7,3051.0,0.00491697]
[1767360930410,0.3276,3051.6,3051.0,0.00491697]
[1767360936007,1.07817254,3051.6,3051.0,0.00491697]
[1767360936304,1.07817254,3051.6,3050.7,0.00406667]
[1767360936507,0.3276,3051.6,3050.7,0.00406667]
[1767360937395,0.3276,3051.6,3050.8,0.00491697]
[1767360940610,0.46426402,3051.6,3050.8,0.00491697]
[1767360941003,0.3276,3051.6,3050.8,0.00491697]
[1767360944512,0.46426402,3051.6,3050.8,0.00491697]
[1767360945511,0.13666402,3051.6,3050.8,0.00491697]
[1767360948315,0.3277,3051.5,3050.8,0.00491697]
[1767360951114,0.46436402,3051.5,3050.8,0.00491697]
[1767360956527,0.3277,3051.5,3050.8,0.15107985]
[1767360957324,0.3277,3051.5,3050.8,0.00491697]
[1767360964340,0.136185,3051.8,3050.8,0.00491697]
[1767360967835,0.136185,3051.6,3050.8,0.00491697]
[1767360975942,0.3276,3051.7,3050.8,0.00491697]
[1767360984137,0.463785,3051.7,3050.8,0.00491697]
[1767360985046,0.136185,3051.7,3050.8,0.00491697]
[1767360985946,0.30092186,3052.1,3050.8,0.00491697]
[1767360986543,0.13694186,3052.0,3050.8,0.00491697]
[1767360988142,0.13694186,3051.8,3050.8,0.00491697]
[1767360989043,0.8879831,3050.9,3049.5,3.279]
[1767360989343,0.13694186,3050.8,3049.5,4.30103752]
[1767360989947,0.13694186,3050.8,3049.8,0.00491697]
[1767360989948,0.00491697,3050.5,3049.8,0.00491697]
[1767361005661,0.3278,3050.4,3049.8,0.00491697]
[1767361009366,0.0026353,3050.8,3050.0,0.89526972]
[1767361009865,0.13694186,3051.4,3050.0,0.89526972]
[1767361010366,0.00491697,3051.0,3050.0,0.89526972]
[1767361010858,0.00842411,3051.0,3050.0,0.89526972]
[1767361012869,0.3277,3050.9,3050.0,0.89526972]
[1767361015065,0.3277,3050.9,3050.3,0.75135992]
[1767361015269,0.3277,3050.9,3050.0,0.1439098]
[1767361015468,0.3277,3050.9,3050.1,0.75135992]
[1767361015766,0.3277,3050.9,3050.1,0.89526972]
[1767361016373,0.13557812,3051.4,3050.4,0.75135992]
[1767361016673,0.13557812,3051.4,3050.7,0.75135992]
[1767361016972,0.13557812,3051.4,3050.5,0.75135992]
[1767361017668,0.00491697,3051.3,3050.1,0.91543992]
[1767361017866,0.14049509,3051.3,3050.1,0.91543992]
[1767361018165,0.14049509,3051.3,3050.2,4.16948037]
[1767361018571,0.14049509,3051.3,3050.3,0.75135992]
[1767361020765,0.14049509,3051.3,3049.8,0.00491697]
[1767361020959,0.13557812,3050.9,3049.8,0.00491697]
[1767361021163,0.13557812,3050.9,3049.9,4.1798699]
[1767361022265,0.00491697,3051.3,3049.8,0.00491697]
[1767361022266,0.13557812,3050.7,3049.8,0.00491697]
[1767361026573,0.14049509,3051.3,3050.3,0.75135992]
[1767361026875,0.14049509,3051.3,3050.4,0.75135992]
[1767361029575,0.14049509,3051.3,3050.2,0.75135992]
[1767361030472,0.14049509,3051.3,3050.4,0.75135992]
[1767361041180,0.14049509,3051.3,3050.1,0.16408]
[1767361041482,0.14049509,3051.3,3050.2,4.34420564]
[1767361041681,0.14049509,3051.3,3050.3,0.75135992]
[1767361045581,0.00491697,3051.3,3050.5,0.16406]
[1767361045784,0.13557812,3051.8,3050.9,0.75135992]
[1767361045979,0.13557812,3051.8,3050.7,0.75135992]
[1767361046481,0.13557812,3051.8,3050.5,0.16406]
[1767361046792,0.00491697,3051.5,3050.6,0.75135992]
[1767361047679,1e-08,3051.5,3050.7,4.30317365]
[1767361047876,1e-08,3051.5,3050.8,0.75135992]
[1767361048083,0.13926556,3051.8,3050.8,0.75135992]
[1767361048276,0.14192895,3052.2,3051.2,0.75135992]
[1767361048486,0.14192895,3052.2,3051.0,0.75135992]
[1767361049088,0.14192895,3051.9,3051.3,0.00491697]
[1767361049391,0.14192895,3051.5,3050.4,3.279]
[1767361049687,0.14192895,3051.3,3050.3,4.17950296]
[1767361050278,0.00491697,3051.1,3050.5,0.00491697]
[1767361059192,0.14684592,3051.1,3050.5,0.00491697]
[1767361060090,0.14684592,3051.1,3050.1,5.377]
[1767361061088,0.14684592,3051.1,3050.3,0.00491697]
[1767361074901,0.00491697,3051.1,3050.3,0.00491697]
[1767361077108,0.13706074,3051.1,3050.3,0.00491697]
[1767361077309,0.13706074,3051.1,3050.4,5.386]
[1767361079908,0.13706074,3051.1,3050.4,5.388]
[1767361082004,0.13706074,3051.1,3050.3,0.00491697]
[1767361083407,0.13706074,3051.1,3050.0,5.391]
[1767361084215,0.13706074,3051.1,3050.2,0.00491697]
[1767361088916,0.13606074,3051.1,3050.2,0.00491697]
[1767361089410,0.13606074,3051.1,3049.8,5.392]
[1767361090317,0.13606074,3051.1,3050.1,0.00491697]
[1767361096215,0.13214377,3051.0,3049.8,5.392]
[1767361096416,0.13214377,3051.0,3049.5,5.55632296]
[1767361096620,0.13214377,3051.0,3049.5,5.39221296]
[1767361097323,0.13214377,3051.0,3049.9,0.00491697]
[1767361098522,0.29617377,3051.0,3049.9,0.00491697]
[1767361098822,0.13214377,3050.9,3049.5,0.00321296]
[1767361100013,0.13214377,3050.9,3049.9,0.00427518]
[1767361104527,0.29618377,3050.9,3049.9,0.00427518]
[1767361104722,0.13214377,3050.6,3049.5,0.00321296]
[1767361107935,0.75096248,3050.5,3049.5,0.00321296]
[1767361108135,0.1424523,3050.4,3049.5,0.00321296]
[1767361109328,0.1424523,3050.4,3048.6,0.16416]
[1767361109526,0.1424523,3050.0,3048.6,0.16416]
[1767361109930,0.1424523,3050.0,3048.5,0.25823509]
[1767361110130,0.14736927,3049.6,3048.3,5.385]
[1767361110336,0.15138304,3049.6,3048.3,0.00324085]
[1767361110536,0.15138304,3049.6,3048.4,4.33234267]
[1767361110739,0.15138304,3049.6,3048.4,4.59336749]
[1767361116739,0.15138304,3049.6,3048.4,4.75753749]
[1767361118541,0.15138304,3049.6,3048.5,5.4]
[1767361121136,0.15138304,3049.6,3048.4,0.42519482]
[1767361121342,0.15138304,3049.6,3048.5,5.405]
[1767361121641,0.15138304,3049.6,3048.5,9.71493132]
[1767361123243,0.8943795,3049.4,3048.4,0.16417]
[1767361123438,0.8943795,3049.4,3048.6,5.409]
[1767361123639,0.1424523,3049.4,3048.6,5.409]
[1767361125447,0.1424523,3049.4,3048.4,0.16417]
[1767361125640,0.1424523,3049.4,3048.5,5.412]
[1767361128350,0.1424523,3049.4,3048.4,0.16417]
[1767361128549,0.1424523,3049.4,3048.5,5.416]
[1767361129351,0.00893074,3049.6,3048.9,0.7519272]
[1767361129551,0.1424523,3050.2,3048.9,0.7519272]
[1767361130252,0.1424523,3050.0,3048.7,0.7519272]
[1767361130460,0.00491697,3049.7,3049.0,0.00491696]
[1767361133444,0.00491697,3049.7,3049.0,5.42391696]
[1767361134754,0.14736927,3049.7,3049.0,5.42391696]
[1767361135254,0.14736927,3049.7,3049.0,5.42591696]
[1767361140459,0.14736927,3049.7,3049.0,0.00491696]
[1767361140655,0.14736927,3049.7,3049.0,5.43191696]
[1767361141052,0.00491697,3049.7,3049.0,5.43191696]
[1767361142061,0.00312195,3050.0,3049.0,5.43191696]
[1767361142062,0.00312195,3050.0,3049.3,0.7519272]
[1767361142262,0.14215412,3050.1,3049.3,0.7519272]
[1767361142557,0.14215412,3050.1,3049.1,0.7519272]
[1767361142959,0.14215412,3050.1,3049.0,5.43191696]
[1767361143157,0.00491697,3049.9,3049.0,5.43191696]
[1767361143460,0.00303591,3050.1,3049.0,5.43191696]
[1767361143663,0.00303591,3050.1,3049.2,0.7519272]
[1767361144561,0.00491697,3050.0,3049.2,0.7519272]
[1767361147756,0.00491697,3050.0,3049.0,0.00491696]
[1767361147961,0.89408132,3049.9,3049.1,5.432]
[1767361149560,0.14215412,3049.9,3049.1,5.432]
[1767361150058,0.14215412,3049.9,3049.1,5.434]
[1767361150357,0.14215412,3049.6,3049.0,0.00491696]
[1767361153863,0.14215412,3049.4,3048.6,5.434]
[1767361154864,0.14215412,3049.3,3048.7,0.00491697]
[1767361155359,0.14215412,3049.3,3048.3,5.43824085]
[1767361156356,0.14215412,3048.9,3048.5,0.00491697]
[1767361156562,0.7519272,3048.8,3048.2,3.99]
[1767361156763,0.14215412,3048.9,3047.6,0.16421]
[1767361157064,0.14215412,3048.9,3047.7,9.83935923]
[1767361157256,0.14215412,3048.9,3047.9,0.7519272]
[1767361157457,0.14215412,3048.9,3047.9,0.75617921]
[1767361159261,0.14215412,3048.9,3047.9,0.00425201]
[1767361159567,0.14215412,3048.9,3048.0,4.531]
[1767361160165,0.14215412,3049.3,3048.0,4.531]
[1767361160368,0.14215412,3049.3,3048.3,0.7519272]
[1767361160664,0.7519272,3049.5,3048.2,0.16418]
[1767361160871,0.14215412,3049.7,3048.4,0.16417]
[1767361161060,0.14215412,3049.7,3048.5,0.7519272]
[1767361166065,0.14215412,3049.7,3048.5,0.9160972]
[1767361166269,0.00491697,3050.0,3048.8,0.9160772]
[1767361166667,0.14524086,3050.0,3048.8,0.9160772]
[1767361168977,0.14524086,3050.0,3048.8,0.16415]
[1767361188288,0.00491697,3050.0,3049.0,0.16414]
[1767361189592,0.00491697,3050.0,3049.1,0.16413]
[1767361190195,0.00491697,3050.0,3049.1,4.4397578]
[1767361190895,0.00303591,3050.1,3049.1,4.4397578]
[1767361191698,0.00203591,3050.1,3049.1,4.4397578]
[1767361191894,0.00491697,3049.9,3049.3,0.00491697]
[1767361194901,1e-08,3049.9,3049.3,0.00491697]
[1767361196009,0.13267308,3049.9,3049.3,0.00491697]
[1767361197010,1e-08,3049.9,3049.3,0.00491697]
[1767361199304,0.13370899,3050.1,3049.3,0.00491697]
[1767361200312,0.00491697,3050.0,3049.3,0.00491697]
[1767361200508,0.13759004,3050.0,3049.3,0.00491697]
[1767361205013,0.13659004,3050.0,3049.3,0.00491697]
[1767361208023,0.00391697,3050.0,3049.3,0.16903697]
[1767361208814,0.13267307,3050.5,3049.4,4.41971965]
[1767361209015,0.13267307,3050.5,3049.5,0.16411]
[1767361209721,0.00491697,3050.3,3049.5,0.16411]
[1767361210322,0.00491697,3050.3,3049.6,4.31873763]
[1767361212026,0.13759004,3050.3,3049.6,4.31873763]
[1767361212223,0.13659004,3050.3,3049.6,4.31873763]
[1767361216038,0.00391697,3050.3,3049.6,4.31873763]
[1767361219535,0.00414353,3050.5,3049.6,4.31873763]
[1767361220042,0.00314353,3050.5,3049.6,4.31873763]
[1767361220640,0.00491697,3050.4,3049.6,4.31873763]
[1767361220841,0.00314353,3050.5,3049.6,5.2345987]
[1767361221234,0.00314353,3050.5,3049.6,0.91586107]
[1767361221440,0.00314353,3050.5,3049.7,4.26517559]
[1767361221639,0.00314353,3050.5,3049.8,5.515]
[1767361222041,0.0080605,3050.5,3049.9,4.26517559]
[1767361222237,0.08004,3051.2,3050.0,5.518]
[1767361223343,0.00327807,3050.9,3050.0,5.518]
[1767361223940,0.00327807,3050.9,3050.1,5.519]
[1767361224138,0.00327807,3050.9,3050.1,5.52241357]
[1767361224344,0.13267307,3050.8,3050.1,5.52241357]
[1767361225344,0.13267307,3050.8,3050.1,0.00341357]
[1767361227443,0.13167307,3050.8,3050.1,0.00341357]
[1767361233955,0.13067307,3050.8,3050.1,0.00341357]
[1767361241457,0.12967307,3050.8,3050.1,0.00341357]
[1767361242659,0.8809769,3050.8,3050.1,0.00341357]
[1767361242858,0.75130383,3050.8,3050.1,0.00341357]
[1767361243056,0.00327807,3050.9,3050.1,0.00341357]
[1767361243458,0.14362071,3050.8,3050.1,0.00341357]
[1767361246862,0.00327807,3050.9,3050.1,0.00341357]
[1767361249962,0.00227807,3050.9,3050.1,0.00341357]
[1767361252064,0.14589878,3050.9,3050.1,0.00341357]
[1767361256071,0.89720261,3050.9,3050.1,0.00341357]
[1767361256268,0.13718172,3050.8,3050.1,5.55241357]
[1767361259770,0.13718172,3050.8,3050.1,0.00341357]
[1767361260068,0.13718172,3050.8,3050.1,5.55641357]
[1767361261666,0.13618172,3050.8,3050.1,5.55641357]
[1767361262472,0.13618172,3050.8,3050.1,0.00341357]
[1767361262972,0.13618172,3050.8,3050.1,5.55941357]
[1767361276872,0.00227807,3050.9,3050.1,5.55941357]
[1767361284185,0.00127807,3050.9,3050.1,5.55941357]
[1767361287589,0.08146137,3051.2,3050.1,5.55941357]
[1767361292695,0.14055955,3051.1,3050.1,5.55941357]
[1767361293294,0.14055955,3051.1,3050.2,5.593]
[1767361294194,0.75130383,3051.0,3050.2,5.593]
[1767361298496,0.75130383,3051.0,3050.2,5.599]
[1767361300604,0.14055955,3051.1,3050.2,5.599]
[1767361302202,0.13955955,3051.1,3050.1,0.00341357]
[1767361302398,0.13955955,3051.1,3050.2,5.604]
[1767361303303,0.13955955,3051.1,3050.1,0.00341357]
[1767361303503,0.13955955,3051.1,3050.2,5.604]
[1767361305705,0.13955955,3051.1,3050.1,0.00341357]
[1767361305906,0.13955955,3051.1,3050.1,5.61041357]
[1767361306203,0.13955955,3051.1,3050.1,0.00341357]
[1767361306508,0.13955955,3051.1,3050.1,5.61041357]
[1767361311517,0.13955955,3051.1,3050.1,0.00341357]
[1767361311812,0.89082545,3051.1,3050.1,0.00341357]
[1767361312713,0.13955955,3051.1,3050.1,0.00341357]
[1767361314208,0.08146137,3051.2,3050.1,0.00341357]
[1767361316109,0.08146137,3051.2,3050.1,0.00241357]
[1767361316511,0.08146137,3051.2,3050.1,0.13552465]
[1767361316718,0.13739289,3052.0,3050.2,4.24559115]
[1767361316906,0.13739289,3051.8,3050.8,0.00491697]
[1767361317716,0.14112636,3051.8,3050.8,0.00491697]
[1767361325922,0.14112636,3051.8,3050.8,0.00391697]
[1767361326927,0.13839289,3051.6,3050.8,0.00391697]
[1767361335037,0.13839289,3051.6,3050.2,9.79194144]
[1767361336135,0.13839289,3051.6,3050.6,0.00491697]
[1767361340832,0.13739289,3051.3,3050.1,0.00241357]
[1767361342039,0.13739289,3051.3,3050.4,0.00491697]
[1767361345330,0.13739289,3051.3,3050.1,0.00241357]
[1767361346443,0.13739289,3051.3,3050.4,0.00491697]
[1767361346635,0.13739289,3051.3,3050.1,0.00241357]
[1767361347238,0.30141289,3051.3,3050.1,0.00241357]
[1767361347438,0.7512659,3051.0,3050.1,0.00241357]
[1767361347647,0.13482591,3050.9,3050.2,0.00491697]
[1767361348547,0.13482591,3050.9,3050.2,0.00750943]
[1767361353552,0.13482591,3051.3,3050.2,0.00750943]
[1767361366265,0.13482591,3051.3,3050.2,0.75861777]
[1767361366560,0.13482591,3051.3,3050.4,0.75110834]
[1767361369461,0.13482591,3051.3,3050.2,0.75861777]
[1767361381568,0.001,3051.6,3051.0,0.75110834]
[1767361381768,0.14926212,3051.8,3051.2,0.75110834]
[1767361382374,0.75110834,3052.6,3051.2,0.75110834]
[1767361382567,1.76123455,3053.2,3051.1,0.16403]
[1767361382768,0.00491697,3052.5,3051.8,0.00491697]
[1767361383171,0.16388,3053.8,3052.3,0.75110834]
[1767361383376,0.75110834,3053.3,3051.8,0.89152726]
[1767361383576,0.75110834,3053.3,3051.8,0.75602531]
[1767361383978,0.75110834,3052.7,3051.9,5.587]
[1767361384173,0.00491697,3052.6,3051.8,0.00491697]
[1767361384486,0.75110834,3052.3,3051.8,0.00491697]
[1767361384780,0.75110834,3052.3,3051.3,5.587]
[1767361384986,0.75110834,3052.5,3051.3,5.587]
[1767361385585,0.75110834,3052.5,3051.6,0.00491697]
[1767361386581,0.15044562,3052.6,3051.6,0.00491697]
[1767361386780,0.90155396,3052.6,3051.6,0.00491697]
[1767361388681,0.00491697,3052.6,3051.9,0.75110834]
[1767361389979,0.14552865,3053.1,3052.1,0.75110834]
[1767361390183,0.14552865,3053.1,3052.1,6.33410834]
[1767361390685,0.14552865,3053.1,3052.1,5.583]
[1767361390883,0.00491697,3052.9,3052.1,5.583]
[1767361395787,0.00491697,3052.9,3051.6,0.14041892]
[1767361395991,0.00491697,3052.9,3051.7,9.61010834]
[1767361396188,0.00491697,3052.9,3051.7,4.94423449]
[1767361396392,0.75110834,3052.7,3051.8,5.581]
[1767361396592,0.75110834,3052.7,3051.9,5.582]
[1767361397386,0.90155396,3052.9,3051.9,5.582]
[1767361402597,0.15044562,3052.9,3051.9,5.582]
[1767361403087,0.00491697,3052.9,3051.9,6.33310834]
[1767361403391,0.00491697,3052.9,3052.1,0.75110834]
[1767361403795,0.00491697,3052.9,3051.9,6.33310834]
[1767361410493,0.00491697,3052.9,3052.1,0.75110834]
[1767361413498,0.00491697,3052.9,3052.0,0.75110834]
[1767361424514,0.00491697,3052.9,3051.9,5.71679269]
[1767361425620,0.00491697,3052.9,3051.9,5.88077269]
[1767361425914,0.00491697,3052.9,3052.0,0.13479269]
[1767361428222,0.00268214,3053.8,3052.1,4.35776658]
[1767361428412,0.00268214,3053.8,3052.1,8.64151439]
[1767361428611,0.00268214,3053.8,3052.2,0.13479269]
[1767361428812,0.00268214,3053.8,3052.3,5.633]
[1767361429016,0.14057575,3053.8,3052.3,5.633]
[1767361429212,0.14281058,3053.4,3052.1,4.28374781]
[1767361429411,0.13789361,3053.1,3052.1,4.11977781]
[1767361429722,0.13789361,3053.1,3052.2,5.636]
[1767361429912,0.13789361,3053.1,3052.3,5.635]
[1767361430113,0.13789361,3053.1,3052.4,5.636]
[1767361430415,0.13789361,3053.1,3052.4,5.63854503]
[1767361437123,0.13789361,3053.1,3052.4,0.00254503]
[1767361447221,0.00491697,3053.4,3052.4,0.14796402]
[1767361447721,0.00268214,3053.8,3052.5,0.14541899]
[1767361448028,0.00268214,3053.8,3052.6,0.14541899]
[1767361448825,0.00391696,3053.5,3052.6,0.14541899]
[1767361450028,1e-08,3053.5,3052.7,4.33581177]
[1767361457528,1e-08,3053.5,3052.4,0.42771645]
[1767361457729,1e-08,3053.5,3052.8,5.666]
[1767361458734,1e-08,3053.5,3052.4,0.42771645]
[1767361458936,1e-08,3053.5,3052.5,5.668]
[1767361459132,1e-08,3053.5,3052.5,9.88076772]
[1767361463637,1e-08,3053.5,3052.5,4.21276772]
[1767361463840,1e-08,3053.5,3052.6,5.689]
[1767361464337,1e-08,3053.5,3052.7,5.694]
[1767361472541,1e-08,3053.5,3052.8,5.713]
[1767361480247,1e-08,3053.5,3052.6,4.11977781]
[1767361480549,1e-08,3053.5,3051.5,10.65106298]
[1767361480550,0.13201283,3053.5,3052.5,5.736]
[1767361481344,0.13201282,3053.4,3051.9,0.16398]
[1767361481744,0.13201282,3053.4,3052.0,5.738]
[1767361482457,0.13201282,3053.4,3052.0,5.74155587]
[1767361485258,0.13201282,3053.4,3052.0,0.00355587]
[1767361485460,0.13201282,3053.4,3052.1,5.744]
[1767361486459,0.75035905,3053.0,3052.1,5.744]
[1767361486657,0.75035905,3052.4,3051.8,5.745]
[1767361486855,0.75035905,3052.6,3051.8,5.745]
[1767361487550,0.75035905,3052.6,3051.8,5.74764872]
[1767361489358,0.75035905,3052.6,3051.8,0.00364872]
[1767361491958,0.75035905,3052.1,3051.6,0.00491697]
[1767361492158,0.75035905,3052.1,3051.2,5.441]
[1767361493160,0.00491697,3052.0,3051.3,0.00491697]
[1767361500073,0.00491697,3052.0,3051.3,0.00391697]
[1767361505569,0.75035905,3051.5,3050.2,0.14591178]
[1767361505774,0.75035905,3051.5,3050.3,5.89791178]
[1767361505975,0.75035905,3051.5,3050.5,4.16339179]
[1767361506177,0.75527602,3052.0,3050.6,0.75035905]
[1767361506571,0.75933667,3052.0,3051.0,0.00491697]
[1767361507673,0.00897762,3052.0,3051.2,0.75035905]
[1767361508070,0.00897762,3052.0,3051.0,6.6531878]
[1767361508272,0.00897762,3052.0,3051.0,5.90282875]
[1767361508575,0.00897762,3052.0,3051.1,5.752]
[1767361508576,0.75933667,3052.0,3051.1,5.752]
[1767361510476,0.75933667,3052.0,3051.2,5.753]
[1767361512273,0.00897762,3052.0,3051.2,5.753]
[1767361513674,0.00897762,3052.0,3051.3,5.753]
[1767361519288,0.00897762,3052.0,3051.0,0.00491697]
[1767361519481,0.75035905,3051.7,3051.0,0.00491697]
[1767361519980,0.75035905,3051.7,3051.0,5.75991697]
[1767361520178,0.75035905,3051.7,3051.0,0.00491697]
[1767361520385,0.75035905,3051.7,3051.0,5.75991697]
[1767361521283,0.75035905,3051.7,3051.0,5.76091697]
[1767361524087,0.75035905,3051.7,3051.0,0.00491697]
[1767361524287,0.75035905,3051.7,3051.0,5.76191697]
[1767361530286,0.14585287,3052.0,3051.0,5.76191697]
[1767361530601,0.75933667,3052.0,3051.0,5.76191697]
[1767361531096,0.75933667,3052.0,3051.0,0.00491697]
[1767361531393,0.75933667,3052.0,3051.0,5.76391697]
[1767361533896,0.00897762,3052.0,3051.0,5.76391697]
[1767361534093,0.75933667,3052.0,3051.0,5.76391697]
[1767361534594,0.75933667,3052.0,3051.0,5.76291697]
[1767361543605,0.75933667,3052.0,3051.0,5.76191697]
[1767361546719,0.00897762,3052.0,3051.0,6.65853703]
[1767361548420,0.00897762,3052.0,3051.1,0.14626101]
[1767361550327,2.06689159,3052.8,3051.1,0.14626101]